[Event "Betsys MČR v online bleskovém šachu 2021"]
[Site "Chess.com"]
[Date "2021.04.17"]
[Round "3"]
[White "JanBaraCZE"]
[Black "YawningBagel"]
[Result "0-1"]
[WhiteElo "1586"]
[BlackElo "1933"]
[TimeControl "180+1"]
[EndTime "9:27:46 PDT"]
[Termination "Uživatel YawningBagel zvítězil matem"]

1. d4 {[%clk 0:03:00.9]} 1... Nf6 {[%clk 0:03:00]} 2. c4 {[%clk 0:03:01.8]} 2...
c5 {[%clk 0:03:00.3]} 3. dxc5 {[%clk 0:03:01.2]} 3... e6 {[%clk 0:03:00]} 4. Nc3
{[%clk 0:02:59.5]} 4... Bxc5 {[%clk 0:02:59.7]} 5. Nf3 {[%clk 0:02:59.6]} 5...
Nc6 {[%clk 0:02:59.7]} 6. Bg5 {[%clk 0:02:59.1]} 6... O-O {[%clk 0:02:59.4]} 7.
a3 {[%clk 0:02:57.2]} 7... Be7 {[%clk 0:02:59.3]} 8. g3 {[%clk 0:02:53.7]} 8...
b6 {[%clk 0:02:59.4]} 9. Bg2 {[%clk 0:02:53.2]} 9... Bb7 {[%clk 0:02:59.6]} 10.
O-O {[%clk 0:02:52.7]} 10... d6 {[%clk 0:02:57.8]} 11. b4 {[%clk 0:02:36.1]}
11... Rc8 {[%clk 0:02:57.5]} 12. Nd2 {[%clk 0:02:13.5]} 12... Qc7 {[%clk
0:02:55.6]} 13. Qb3 {[%clk 0:02:05.5]} 13... a6 {[%clk 0:02:52.8]} 14. Rac1
{[%clk 0:02:01.4]} 14... Nd4 {[%clk 0:02:50.9]} 15. Qb2 {[%clk 0:01:51]} 15...
Bxg2 {[%clk 0:02:50.3]} 16. Kxg2 {[%clk 0:01:50.1]} 16... Qb7+ {[%clk
0:02:50.4]} 17. Kg1 {[%clk 0:01:48.2]} 17... Nc6 {[%clk 0:02:48.6]} 18. Nde4
{[%clk 0:01:24.5]} 18... Nxe4 {[%clk 0:02:24.5]} 19. Nxe4 {[%clk 0:01:03]} 19...
Bxg5 {[%clk 0:01:23.9]} 20. Nxg5 {[%clk 0:00:58.3]} 20... Ne5 {[%clk 0:01:24.1]}
21. Qc2 {[%clk 0:00:37.8]} 21... g6 {[%clk 0:01:20.6]} 22. Qb3 {[%clk
0:00:14.9]} 22... h6 {[%clk 0:01:16.2]} 23. f4 {[%clk 0:00:14.6]} 23... hxg5
{[%clk 0:01:15.8]} 24. fxe5 {[%clk 0:00:14.5]} 24... dxe5 {[%clk 0:01:14.9]} 25.
Qf3 {[%clk 0:00:14.2]} 25... Qxf3 {[%clk 0:01:14.3]} 26. Rxf3 {[%clk 0:00:15.1]}
26... Kg7 {[%clk 0:01:14.6]} 27. Rfc3 {[%clk 0:00:12.3]} 27... Kf6 {[%clk
0:01:01.6]} 28. Kf2 {[%clk 0:00:12.7]} 28... Rfd8 {[%clk 0:01:01.2]} 29. Rf1
{[%clk 0:00:12]} 29... Ke7 {[%clk 0:01:01.3]} 30. Rfc1 {[%clk 0:00:11.6]} 30...
f5 {[%clk 0:00:59.4]} 31. c5 {[%clk 0:00:11.7]} 31... bxc5 {[%clk 0:00:59.6]}
32. Rxc5 {[%clk 0:00:12.1]} 32... Rxc5 {[%clk 0:00:59.7]} 33. Rxc5 {[%clk
0:00:13]} 33... Rd7 {[%clk 0:00:57.2]} 34. Rc6 {[%clk 0:00:12.5]} 34... Ra7
{[%clk 0:00:57.1]} 35. Rb6 {[%clk 0:00:11.9]} 35... a5 {[%clk 0:00:53.3]} 36.
bxa5 {[%clk 0:00:11.4]} 36... Rxa5 {[%clk 0:00:53.6]} 37. Rb3 {[%clk 0:00:12.3]}
37... e4 {[%clk 0:00:53.4]} 38. e3 {[%clk 0:00:11.4]} 38... Kf6 {[%clk
0:00:53.8]} 39. h3 {[%clk 0:00:11.6]} 39... Ra6 {[%clk 0:00:51.1]} 40. g4 {[%clk
0:00:11.7]} 40... f4 {[%clk 0:00:49.5]} 41. exf4 {[%clk 0:00:11.5]} 41... gxf4
{[%clk 0:00:50.4]} 42. Rb4 {[%clk 0:00:10.8]} 42... Rxa3 {[%clk 0:00:49.4]} 43.
Rxe4 {[%clk 0:00:10.2]} 43... e5 {[%clk 0:00:49.7]} 44. Rc4 {[%clk 0:00:07.6]}
44... Ra5 {[%clk 0:00:46.4]} 45. Rc1 {[%clk 0:00:07.3]} 45... Kg5 {[%clk
0:00:45.7]} 46. Rh1 {[%clk 0:00:06.5]} 46... e4 {[%clk 0:00:44.5]} 47. h4+
{[%clk 0:00:06.3]} 47... Kxg4 {[%clk 0:00:44.1]} 48. Rg1+ {[%clk 0:00:04.6]}
48... Kxh4 {[%clk 0:00:43.4]} 49. Rxg6 {[%clk 0:00:04.7]} 49... Ra2+ {[%clk
0:00:43.4]} 50. Ke1 {[%clk 0:00:02.9]} 50... e3 {[%clk 0:00:43.9]} 51. Rg8
{[%clk 0:00:03.1]} 51... f3 {[%clk 0:00:43.7]} 52. Rf8 {[%clk 0:00:03.2]} 52...
Kg4 {[%clk 0:00:40.1]} 53. Rg8+ {[%clk 0:00:02.5]} 53... Kf4 {[%clk 0:00:39.2]}
54. Rf8+ {[%clk 0:00:02.4]} 54... Ke4 {[%clk 0:00:39.8]} 55. Re8+ {[%clk
0:00:02.5]} 55... Kd4 {[%clk 0:00:40.3]} 56. Rd8+ {[%clk 0:00:02.4]} 56... Kc5
{[%clk 0:00:40.7]} 57. Rc8+ {[%clk 0:00:02.4]} 57... Kd6 {[%clk 0:00:40.7]} 58.
Rf8 {[%clk 0:00:02.2]} 58... Ra1# {[%clk 0:00:40.5]} 0-1

[Event "Betsys MČR v online bleskovém šachu 2021"]
[Site "Chess.com"]
[Date "2021.04.17"]
[Round "3"]
[White "Ladislav1969"]
[Black "jarda1955"]
[Result "1-0"]
[WhiteElo "2326"]
[BlackElo "1992"]
[TimeControl "180+1"]
[EndTime "9:27:47 PDT"]
[Termination "Uživatel Ladislav1969 zvítězil na čas"]

1. e4 {[%clk 0:03:00.9]} 1... c6 {[%clk 0:02:58.3]} 2. d4 {[%clk 0:03:00.8]}
2... d5 {[%clk 0:02:58.1]} 3. e5 {[%clk 0:03:01.4]} 3... Bf5 {[%clk 0:02:57.5]}
4. Nd2 {[%clk 0:03:01.8]} 4... c5 {[%clk 0:02:38.7]} 5. dxc5 {[%clk 0:02:58.7]}
5... e6 {[%clk 0:02:31.4]} 6. Nb3 {[%clk 0:02:57.4]} 6... Ne7 {[%clk 0:02:23.3]}
7. Nf3 {[%clk 0:02:56.3]} 7... Nec6 {[%clk 0:02:17.4]} 8. Be3 {[%clk 0:02:25.3]}
8... Bg4 {[%clk 0:02:08.7]} 9. Bd4 {[%clk 0:02:14.6]} 9... Nd7 {[%clk 0:02:04]}
10. Bb5 {[%clk 0:02:08.1]} 10... Bxf3 {[%clk 0:01:50.7]} 11. gxf3 {[%clk
0:02:03.9]} 11... Qc7 {[%clk 0:01:32]} 12. Bxc6 {[%clk 0:01:56.7]} 12... Qxc6
{[%clk 0:01:27.8]} 13. Rg1 {[%clk 0:01:46.5]} 13... g6 {[%clk 0:01:27.3]} 14.
Qd3 {[%clk 0:01:35.6]} 14... Bxc5 {[%clk 0:01:23.5]} 15. f4 {[%clk 0:01:33.5]}
15... Rc8 {[%clk 0:01:17.8]} 16. O-O-O {[%clk 0:01:29.2]} 16... Bxd4 {[%clk
0:01:16.1]} 17. Nxd4 {[%clk 0:01:28.6]} 17... Qc4 {[%clk 0:01:13]} 18. Qa3
{[%clk 0:01:18.6]} 18... a6 {[%clk 0:01:07.1]} 19. Rg3 {[%clk 0:01:11.8]} 19...
Qc5 {[%clk 0:01:03.9]} 20. Rc3 {[%clk 0:01:09.2]} 20... Qxa3 {[%clk 0:00:52.8]}
21. Rxc8+ {[%clk 0:00:58.3]} 21... Ke7 {[%clk 0:00:52.3]} 22. Rxh8 {[%clk
0:00:30.9]} 22... Qxa2 {[%clk 0:00:50.8]} 23. Nb3 {[%clk 0:00:24.4]} 23... Qa4
{[%clk 0:00:47.8]} 24. Rd4 {[%clk 0:00:22.7]} 24... Qb5 {[%clk 0:00:47.5]} 25.
Rxh7 {[%clk 0:00:18.8]} 25... Qf1+ {[%clk 0:00:46.6]} 26. Rd1 {[%clk 0:00:18.7]}
26... Qxf2 {[%clk 0:00:46.4]} 27. Kb1 {[%clk 0:00:16]} 27... Qxf4 {[%clk
0:00:46]} 28. Nd4 {[%clk 0:00:14.8]} 28... Nxe5 {[%clk 0:00:40]} 29. c3 {[%clk
0:00:13.3]} 29... Qf2 {[%clk 0:00:35.5]} 30. Rh8 {[%clk 0:00:10.9]} 30... Nc4
{[%clk 0:00:34.4]} 31. Nc2 {[%clk 0:00:09.6]} 31... Qe2 {[%clk 0:00:23.2]} 32.
Re1 {[%clk 0:00:08.9]} 32... Qf2 {[%clk 0:00:20.4]} 33. Rb8 {[%clk 0:00:08.4]}
33... Nd6 {[%clk 0:00:17.1]} 34. Kc1 {[%clk 0:00:05.8]} 34... Qxh2 {[%clk
0:00:16.8]} 35. Nd4 {[%clk 0:00:05]} 35... Qf4+ {[%clk 0:00:15.6]} 36. Kb1
{[%clk 0:00:05]} 36... Qf2 {[%clk 0:00:14.6]} 37. Rd1 {[%clk 0:00:03.8]} 37...
g5 {[%clk 0:00:14.6]} 38. Rg8 {[%clk 0:00:02.5]} 38... f6 {[%clk 0:00:13.7]} 39.
Rg7+ {[%clk 0:00:02.8]} 39... Kf8 {[%clk 0:00:12.7]} 40. Rd7 {[%clk 0:00:03.4]}
40... Ke8 {[%clk 0:00:12.1]} 41. Rxd6 {[%clk 0:00:03.5]} 41... Qg3 {[%clk
0:00:11]} 42. Rxe6+ {[%clk 0:00:03.6]} 42... Kf7 {[%clk 0:00:05.3]} 43. Re2
{[%clk 0:00:04.5]} 43... Kg6 {[%clk 0:00:03.9]} 44. Rde1 {[%clk 0:00:05]} 44...
f5 {[%clk 0:00:03.3]} 45. Kc1 {[%clk 0:00:05.3]} 45... f4 {[%clk 0:00:02.7]} 46.
Re6+ {[%clk 0:00:06.2]} 1-0

[Event "Betsys MČR v online bleskovém šachu 2021"]
[Site "Chess.com"]
[Date "2021.04.17"]
[Round "3"]
[White "mravecuk"]
[Black "JJ95"]
[Result "1-0"]
[WhiteElo "2264"]
[BlackElo "2004"]
[TimeControl "180+1"]
[EndTime "9:27:49 PDT"]
[Termination "Uživatel mravecuk zvítězil na čas"]

1. d4 {[%clk 0:02:57.9]} 1... d5 {[%clk 0:02:59.6]} 2. Nc3 {[%clk 0:02:53.5]}
2... Nc6 {[%clk 0:02:56]} 3. Bf4 {[%clk 0:02:52.7]} 3... Nf6 {[%clk 0:02:55]} 4.
Nb5 {[%clk 0:02:47.5]} 4... e5 {[%clk 0:02:46.8]} 5. Bxe5 {[%clk 0:02:46.7]}
5... Nxe5 {[%clk 0:02:44.7]} 6. dxe5 {[%clk 0:02:46.7]} 6... Ng4 {[%clk
0:02:30.3]} 7. Qxd5 {[%clk 0:02:40.4]} 7... c6 {[%clk 0:01:40.8]} 8. Qxd8+
{[%clk 0:02:35.4]} 8... Kxd8 {[%clk 0:01:41.7]} 9. Rd1+ {[%clk 0:02:22.2]} 9...
Bd7 {[%clk 0:01:36.6]} 10. Nd6 {[%clk 0:02:13.6]} 10... Nxe5 {[%clk 0:01:32]}
11. Nf3 {[%clk 0:01:52]} 11... Bxd6 {[%clk 0:01:18.3]} 12. Rxd6 {[%clk
0:01:49.3]} 12... Nc4 {[%clk 0:01:13.4]} 13. Rd4 {[%clk 0:01:40.7]} 13... Nb6
{[%clk 0:00:50.4]} 14. Ne5 {[%clk 0:01:28.1]} 14... Ke7 {[%clk 0:00:49.7]} 15.
Nxd7 {[%clk 0:01:25.3]} 15... Nxd7 {[%clk 0:00:50.6]} 16. e3 {[%clk 0:01:25]}
16... Rad8 {[%clk 0:00:45.2]} 17. Be2 {[%clk 0:01:22.8]} 17... Nc5 {[%clk
0:00:45.2]} 18. f3 {[%clk 0:01:14.9]} 18... Ne6 {[%clk 0:00:41.4]} 19. Rxd8
{[%clk 0:01:12.8]} 19... Rxd8 {[%clk 0:00:42.3]} 20. Bc4 {[%clk 0:01:09.4]}
20... b5 {[%clk 0:00:40.8]} 21. Bxe6 {[%clk 0:01:08.5]} 21... Kxe6 {[%clk
0:00:40.6]} 22. Ke2 {[%clk 0:01:09.1]} 22... Rd5 {[%clk 0:00:37.7]} 23. Rd1
{[%clk 0:01:09]} 23... Rg5 {[%clk 0:00:37.1]} 24. g4 {[%clk 0:01:03.9]} 24... h5
{[%clk 0:00:35.2]} 25. h4 {[%clk 0:01:04]} 25... Rc5 {[%clk 0:00:33.4]} 26. c3
{[%clk 0:01:00.8]} 26... hxg4 {[%clk 0:00:26.7]} 27. fxg4 {[%clk 0:01:01.7]}
27... Rc4 {[%clk 0:00:22.8]} 28. Rd4 {[%clk 0:01:01.2]} 28... Rc5 {[%clk
0:00:20.2]} 29. Kf3 {[%clk 0:00:58.4]} 29... f5 {[%clk 0:00:18.4]} 30. g5 {[%clk
0:00:52.1]} 30... g6 {[%clk 0:00:18.3]} 31. Kf4 {[%clk 0:00:47.9]} 31... Re5
{[%clk 0:00:14.1]} 32. e4 {[%clk 0:00:45]} 32... c5 {[%clk 0:00:08.1]} 33. Rd8
{[%clk 0:00:44.6]} 33... Rxe4+ {[%clk 0:00:07.7]} 34. Kg3 {[%clk 0:00:41.9]}
34... Re2 {[%clk 0:00:05.7]} 35. Rc8 {[%clk 0:00:40.2]} 35... Rxb2 {[%clk
0:00:05.1]} 36. Rc6+ {[%clk 0:00:40.3]} 36... Kf7 {[%clk 0:00:04.6]} 37. Rxc5
{[%clk 0:00:40.4]} 37... Rxa2 {[%clk 0:00:04.3]} 38. Rxb5 {[%clk 0:00:40.7]}
38... Rc2 {[%clk 0:00:03.6]} 39. Rb7+ {[%clk 0:00:39.5]} 39... Ke6 {[%clk
0:00:03.5]} 40. Rb3 {[%clk 0:00:34.1]} 40... Rc1 {[%clk 0:00:03.5]} 41. Ra3
{[%clk 0:00:33.9]} 41... a5 {[%clk 0:00:03.6]} 42. Rxa5 {[%clk 0:00:29.3]} 42...
Rxc3+ {[%clk 0:00:03.7]} 43. Kg2 {[%clk 0:00:28.1]} 43... Rc4 {[%clk 0:00:03.7]}
44. Ra6+ {[%clk 0:00:27.6]} 44... Kf7 {[%clk 0:00:03.6]} 45. Kg3 {[%clk
0:00:26.7]} 45... Rc3+ {[%clk 0:00:04]} 46. Kf4 {[%clk 0:00:26]} 46... Rc4+
{[%clk 0:00:04.3]} 47. Ke5 {[%clk 0:00:26.1]} 47... Rxh4 {[%clk 0:00:04.6]} 48.
Ra7+ {[%clk 0:00:26]} 48... Kf8 {[%clk 0:00:03.8]} 49. Kf6 {[%clk 0:00:26.3]}
49... Ke8 {[%clk 0:00:02.4]} 50. Ra8+ {[%clk 0:00:23.3]} 50... Kd7 {[%clk
0:00:02.2]} 51. Kxg6 {[%clk 0:00:23.6]} 51... f4 {[%clk 0:00:02.5]} 52. Rf8
{[%clk 0:00:23.7]} 52... Rg4 {[%clk 0:00:02]} 53. Kh5 {[%clk 0:00:20.7]} 1-0

[Event "Betsys MČR v online bleskovém šachu 2021"]
[Site "Chess.com"]
[Date "2021.04.17"]
[Round "3"]
[White "malviny"]
[Black "Vojta0007"]
[Result "1-0"]
[WhiteElo "1162"]
[BlackElo "1481"]
[TimeControl "180+1"]
[EndTime "9:27:49 PDT"]
[Termination "Uživatel malviny zvítězil na čas"]

1. e4 {[%clk 0:03:00.9]} 1... c5 {[%clk 0:02:57.5]} 2. Nf3 {[%clk 0:03:01]} 2...
Nc6 {[%clk 0:02:56.4]} 3. d4 {[%clk 0:03:01.1]} 3... cxd4 {[%clk 0:02:56.1]} 4.
Nxd4 {[%clk 0:03:01.2]} 4... d6 {[%clk 0:02:55.1]} 5. Nc3 {[%clk 0:03:00.4]}
5... Nf6 {[%clk 0:02:54.3]} 6. Bb5 {[%clk 0:02:59.8]} 6... Bd7 {[%clk
0:02:49.7]} 7. O-O {[%clk 0:02:51.5]} 7... e6 {[%clk 0:02:47.5]} 8. Bg5 {[%clk
0:02:44.1]} 8... Be7 {[%clk 0:02:45]} 9. Re1 {[%clk 0:02:38.4]} 9... O-O {[%clk
0:02:40.4]} 10. e5 {[%clk 0:02:32.5]} 10... dxe5 {[%clk 0:02:34.6]} 11. Nxc6
{[%clk 0:02:26.4]} 11... bxc6 {[%clk 0:02:31.1]} 12. Ba6 {[%clk 0:02:24.9]}
12... Qb6 {[%clk 0:02:23.7]} 13. Bc4 {[%clk 0:02:00]} 13... Rfd8 {[%clk
0:02:12.5]} 14. Bb3 {[%clk 0:01:54.7]} 14... h6 {[%clk 0:02:03.4]} 15. Bh4
{[%clk 0:01:53.6]} 15... Bc8 {[%clk 0:01:45.7]} 16. Qf3 {[%clk 0:01:49.1]} 16...
Bb7 {[%clk 0:01:36.8]} 17. Rxe5 {[%clk 0:01:45]} 17... c5 {[%clk 0:01:30]} 18.
Qe2 {[%clk 0:01:38.2]} 18... Qc6 {[%clk 0:01:10.7]} 19. f3 {[%clk 0:01:34.2]}
19... c4 {[%clk 0:01:08.6]} 20. Ba4 {[%clk 0:01:31.9]} 20... Qc7 {[%clk
0:00:59.7]} 21. Bg3 {[%clk 0:01:28.3]} 21... Bd6 {[%clk 0:00:52.4]} 22. Nb5
{[%clk 0:01:15.4]} 22... Bc5+ {[%clk 0:00:44.2]} 23. Kf1 {[%clk 0:00:59.8]}
23... Qe7 {[%clk 0:00:38.9]} 24. Qxc4 {[%clk 0:00:46.8]} 24... Bd6 {[%clk
0:00:23.9]} 25. Nxd6 {[%clk 0:00:28.1]} 25... Rxd6 {[%clk 0:00:20.8]} 26. Rb5
{[%clk 0:00:20.7]} 26... Rd7 {[%clk 0:00:14.4]} 27. Re5 {[%clk 0:00:16.4]} 27...
Bd5 {[%clk 0:00:12]} 28. Qb5 {[%clk 0:00:06.4]} 28... Rdd8 {[%clk 0:00:10.5]}
29. Qa6 {[%clk 0:00:04]} 29... Rab8 {[%clk 0:00:08.8]} 30. b3 {[%clk 0:00:03]}
30... Bb7 {[%clk 0:00:06.4]} 31. Qe2 {[%clk 0:00:01.5]} 31... a5 {[%clk
0:00:05.5]} 32. Qe3 {[%clk 0:00:01.8]} 32... Ra8 {[%clk 0:00:04.9]} 33. Qe2
{[%clk 0:00:01.9]} 33... Ba6 {[%clk 0:00:04.6]} 34. Kf2 {[%clk 0:00:01.2]} 34...
Bxe2 {[%clk 0:00:03.9]} 35. Rxe2 {[%clk 0:00:01.5]} 35... Rac8 {[%clk
0:00:02.7]} 36. Rae1 {[%clk 0:00:01.5]} 36... Rc7 {[%clk 0:00:02.2]} 37. Re3
{[%clk 0:00:01.7]} 37... Rdc8 {[%clk 0:00:02.1]} 38. R3e2 {[%clk 0:00:02.2]}
38... Rxc2 {[%clk 0:00:01.7]} 39. Rxc2 {[%clk 0:00:02.2]} 39... Rxc2+ {[%clk
0:00:02.2]} 40. Re2 {[%clk 0:00:02.8]} 40... Rxe2+ {[%clk 0:00:01.7]} 41. Kxe2
{[%clk 0:00:02.7]} 41... Qa7 {[%clk 0:00:01.2]} 42. Kf1 {[%clk 0:00:02.4]} 42...
Qa6+ {[%clk 0:00:01.2]} 43. Ke1 {[%clk 0:00:01.3]} 43... Qa7 {[%clk 0:00:01.4]}
44. Kd2 {[%clk 0:00:01.5]} 1-0

[Event "Betsys MČR v online bleskovém šachu 2021"]
[Site "Chess.com"]
[Date "2021.04.17"]
[Round "3"]
[White "Jeff_CZE"]
[Black "Maximon2012"]
[Result "1-0"]
[WhiteElo "1856"]
[BlackElo "1096"]
[TimeControl "180+1"]
[EndTime "9:27:52 PDT"]
[Termination "Uživatel Jeff_CZE zvítězil na čas"]

1. d4 {[%clk 0:03:00.9]} 1... d5 {[%clk 0:02:55.9]} 2. c4 {[%clk 0:02:59.1]}
2... e6 {[%clk 0:02:54.7]} 3. Nf3 {[%clk 0:02:59.1]} 3... Nc6 {[%clk 0:02:53.5]}
4. g3 {[%clk 0:02:59.5]} 4... Bd6 {[%clk 0:02:51.7]} 5. Bg2 {[%clk 0:03:00]}
5... Bd7 {[%clk 0:02:50.8]} 6. O-O {[%clk 0:02:59.4]} 6... Nf6 {[%clk
0:02:50.3]} 7. b3 {[%clk 0:02:59.8]} 7... Bb4 {[%clk 0:02:45.7]} 8. Bb2 {[%clk
0:02:59]} 8... Qe7 {[%clk 0:02:42.1]} 9. Nbd2 {[%clk 0:02:58.9]} 9... O-O {[%clk
0:02:37.1]} 10. Rc1 {[%clk 0:02:56.5]} 10... dxc4 {[%clk 0:02:35.6]} 11. bxc4
{[%clk 0:02:48.8]} 11... Bxd2 {[%clk 0:02:20.8]} 12. Nxd2 {[%clk 0:02:37.8]}
12... e5 {[%clk 0:02:16.4]} 13. d5 {[%clk 0:02:27.3]} 13... Nd4 {[%clk
0:02:09.7]} 14. Bxd4 {[%clk 0:02:23.6]} 14... exd4 {[%clk 0:02:08.6]} 15. Nf3
{[%clk 0:02:15.2]} 15... Qc5 {[%clk 0:01:54.5]} 16. Qxd4 {[%clk 0:02:12.6]}
16... Qxd4 {[%clk 0:01:53.7]} 17. Nxd4 {[%clk 0:02:13.5]} 17... Rae8 {[%clk
0:01:48.7]} 18. Rfe1 {[%clk 0:02:12.8]} 18... h6 {[%clk 0:01:46.7]} 19. e4
{[%clk 0:02:10.7]} 19... Ng4 {[%clk 0:01:43.6]} 20. f4 {[%clk 0:02:00]} 20... c6
{[%clk 0:01:34.3]} 21. h3 {[%clk 0:01:56.7]} 21... Nf6 {[%clk 0:01:14.2]} 22. e5
{[%clk 0:01:56.2]} 22... Nh7 {[%clk 0:01:11]} 23. dxc6 {[%clk 0:01:54.1]} 23...
bxc6 {[%clk 0:01:05.9]} 24. Nxc6 {[%clk 0:01:50.4]} 24... Bxc6 {[%clk
0:01:03.8]} 25. Bxc6 {[%clk 0:01:49.8]} 25... Rc8 {[%clk 0:00:58.2]} 26. Bd5
{[%clk 0:01:41]} 26... Rfd8 {[%clk 0:00:39]} 27. e6 {[%clk 0:01:40.5]} 27... Rc7
{[%clk 0:00:33.5]} 28. exf7+ {[%clk 0:01:29.2]} 28... Kf8 {[%clk 0:00:33]} 29.
Re4 {[%clk 0:01:11.4]} 29... Rxd5 {[%clk 0:00:30.1]} 30. Re8+ {[%clk 0:01:10.9]}
30... Kxf7 {[%clk 0:00:28.1]} 31. Re4 {[%clk 0:00:58.1]} 31... Rdc5 {[%clk
0:00:21.2]} 32. Kf2 {[%clk 0:00:56.9]} 32... Nf6 {[%clk 0:00:17.3]} 33. Rd4
{[%clk 0:00:57.3]} 33... Ke6 {[%clk 0:00:16.6]} 34. Ke3 {[%clk 0:00:54]} 34...
R5c6 {[%clk 0:00:10.6]} 35. g4 {[%clk 0:00:52.4]} 35... Ne8 {[%clk 0:00:07.8]}
36. f5+ {[%clk 0:00:52.2]} 36... Kf7 {[%clk 0:00:07.2]} 37. Kf4 {[%clk
0:00:52.2]} 37... Kf8 {[%clk 0:00:07.4]} 38. h4 {[%clk 0:00:49.7]} 38... Kf7
{[%clk 0:00:07.7]} 39. g5 {[%clk 0:00:49.4]} 39... Kf8 {[%clk 0:00:08.2]} 40. g6
{[%clk 0:00:47.6]} 40... Nf6 {[%clk 0:00:06.9]} 41. Re1 {[%clk 0:00:44.7]} 41...
Rc8 {[%clk 0:00:04.8]} 42. Kf3 {[%clk 0:00:42]} 42... Rxc4 {[%clk 0:00:04]} 43.
Rd6 {[%clk 0:00:41.4]} 43... Ne8 {[%clk 0:00:02.1]} 44. Rd7 {[%clk 0:00:39.8]}
44... Kg8 {[%clk 0:00:02.6]} 45. Ree7 {[%clk 0:00:38.7]} 45... Kh8 {[%clk
0:00:03.1]} 46. Rxa7 {[%clk 0:00:37]} 46... Rd8 {[%clk 0:00:01.9]} 47. Rad7
{[%clk 0:00:29.1]} 47... Rdc8 {[%clk 0:00:02.4]} 48. a4 {[%clk 0:00:27.1]} 48...
R4c5 {[%clk 0:00:02.3]} 49. Ra7 {[%clk 0:00:25.9]} 49... Rb8 {[%clk 0:00:02.1]}
50. a5 {[%clk 0:00:25.3]} 50... Rbc8 {[%clk 0:00:02.5]} 51. a6 {[%clk
0:00:25.7]} 51... Rb8 {[%clk 0:00:03.1]} 52. Rab7 {[%clk 0:00:25.7]} 52... Ra8
{[%clk 0:00:03.1]} 53. a7 {[%clk 0:00:25.7]} 53... Rcc8 {[%clk 0:00:01.5]} 54.
Rec7 {[%clk 0:00:23.2]} 54... Kg8 {[%clk 0:00:01.9]} 55. Rf7 {[%clk 0:00:22.5]}
1-0

[Event "Betsys MČR v online bleskovém šachu 2021"]
[Site "Chess.com"]
[Date "2021.04.17"]
[Round "3"]
[White "jachym08"]
[Black "avsokol"]
[Result "1/2-1/2"]
[WhiteElo "2180"]
[BlackElo "2395"]
[TimeControl "180+1"]
[EndTime "9:27:53 PDT"]
[Termination "Remíza opakováním pozice"]

1. d4 {[%clk 0:03:00.9]} 1... Nf6 {[%clk 0:02:58.4]} 2. c4 {[%clk 0:03:00.5]}
2... g6 {[%clk 0:02:58.7]} 3. Nc3 {[%clk 0:03:00.6]} 3... Bg7 {[%clk 0:02:59.2]}
4. e4 {[%clk 0:03:00.5]} 4... d6 {[%clk 0:02:59.4]} 5. h3 {[%clk 0:02:55.6]}
5... O-O {[%clk 0:02:59.5]} 6. Nf3 {[%clk 0:02:55.3]} 6... e5 {[%clk 0:02:59.6]}
7. d5 {[%clk 0:02:55.2]} 7... a5 {[%clk 0:02:59.1]} 8. Be3 {[%clk 0:02:54.9]}
8... Na6 {[%clk 0:02:59.1]} 9. Be2 {[%clk 0:02:54]} 9... Nh5 {[%clk 0:02:55.5]}
10. g3 {[%clk 0:02:46.4]} 10... c6 {[%clk 0:02:47.3]} 11. Nd2 {[%clk 0:02:42.7]}
11... Nf6 {[%clk 0:02:46.2]} 12. g4 {[%clk 0:02:39.8]} 12... Nd7 {[%clk
0:02:45.6]} 13. a3 {[%clk 0:02:37.9]} 13... Ndc5 {[%clk 0:02:41.1]} 14. b4
{[%clk 0:02:31]} 14... Nd7 {[%clk 0:02:34.9]} 15. Rb1 {[%clk 0:02:26.8]} 15...
axb4 {[%clk 0:02:30.9]} 16. axb4 {[%clk 0:02:27.7]} 16... c5 {[%clk 0:02:30.7]}
17. bxc5 {[%clk 0:02:16.4]} 17... Ndxc5 {[%clk 0:02:20.1]} 18. Nb5 {[%clk
0:02:04.3]} 18... f5 {[%clk 0:02:07.3]} 19. gxf5 {[%clk 0:02:01.4]} 19... gxf5
{[%clk 0:02:06.6]} 20. Rg1 {[%clk 0:01:51.1]} 20... f4 {[%clk 0:02:00.5]} 21.
Bxc5 {[%clk 0:01:49.8]} 21... Nxc5 {[%clk 0:02:00.9]} 22. Bg4 {[%clk 0:01:49.6]}
22... Qh4 {[%clk 0:01:20.3]} 23. Qf3 {[%clk 0:01:43.5]} 23... Rf6 {[%clk
0:01:04.4]} 24. Nc7 {[%clk 0:01:22]} 24... Rb8 {[%clk 0:00:52]} 25. Ke2 {[%clk
0:01:01.1]} 25... Rg6 {[%clk 0:00:41.3]} 26. Bf5 {[%clk 0:00:49.4]} 26... Rg5
{[%clk 0:00:25.9]} 27. Bxc8 {[%clk 0:00:24.3]} 27... Rxc8 {[%clk 0:00:25.2]} 28.
Nb5 {[%clk 0:00:25]} 28... Rd8 {[%clk 0:00:24.6]} 29. Ra1 {[%clk 0:00:23.4]}
29... Qh6 {[%clk 0:00:21.1]} 30. Rxg5 {[%clk 0:00:22.7]} 30... Qxg5 {[%clk
0:00:21.1]} 31. Nf1 {[%clk 0:00:13.4]} 31... h6 {[%clk 0:00:20]} 32. Nd2 {[%clk
0:00:13.5]} 32... Qg6 {[%clk 0:00:17]} 33. Rf1 {[%clk 0:00:12]} 33... Kh7 {[%clk
0:00:16.7]} 34. Qg4 {[%clk 0:00:10.8]} 34... Qxg4+ {[%clk 0:00:13.3]} 35. hxg4
{[%clk 0:00:11.7]} 35... Bf8 {[%clk 0:00:12.1]} 36. Ra1 {[%clk 0:00:11.4]} 36...
Be7 {[%clk 0:00:12.6]} 37. f3 {[%clk 0:00:11.2]} 37... Kg6 {[%clk 0:00:10.7]}
38. Rh1 {[%clk 0:00:11.2]} 38... Rh8 {[%clk 0:00:10.1]} 39. Rh5 {[%clk
0:00:10.9]} 39... Nd7 {[%clk 0:00:09.1]} 40. Nc7 {[%clk 0:00:10.7]} 40... Nf6
{[%clk 0:00:08.8]} 41. Rh1 {[%clk 0:00:10.9]} 41... Rc8 {[%clk 0:00:07.9]} 42.
Ne6 {[%clk 0:00:10.4]} 42... Ra8 {[%clk 0:00:07.5]} 43. Rb1 {[%clk 0:00:09.3]}
43... Ra7 {[%clk 0:00:06.6]} 44. Nb3 {[%clk 0:00:08.3]} 44... Nd7 {[%clk
0:00:06.1]} 45. Nd2 {[%clk 0:00:08.5]} 45... Kf7 {[%clk 0:00:03.7]} 46. Rh1
{[%clk 0:00:06.7]} 46... Kg6 {[%clk 0:00:02]} 47. Rb1 {[%clk 0:00:07.4]} 47...
Kf7 {[%clk 0:00:02]} 48. Nc7 {[%clk 0:00:07]} 48... Kg6 {[%clk 0:00:01.2]} 49.
Ne6 {[%clk 0:00:07.3]} 1/2-1/2